[Event "Dvaro taure"]
[Site "Taujenai, Lithuania"]
[Date "2021.11.28"]
[Round "7.1"]
[White "Povilaitis, Tomas"]
[Black "Laurusas, Tomas"]
[Result "0-1"]
[WhiteElo "1986"]
[BlackElo "2550"]
[PlyCount "91"]
[EventDate "2021.??.??"]
[TimeControl "10+5"]
[WhiteClock "0:00:53"]
[BlackClock "0:03:05"]

1. e4 {[%emt 0:00:00]} c5 {[%emt 0:00:00]} 2. Nf3 {[%emt 0:00:05]} e6 {[%emt 0:
00:06]} 3. Nc3 {[%emt 0:00:03]} Nc6 {[%emt 0:00:17]} 4. Bb5 {[%emt 0:00:01]}
Nge7 {[%emt 0:00:00]} 5. O-O {[%emt 0:00:03]} Qb6 {[%emt 0:00:00]} 6. Re1 {
[%emt 0:00:29]} Nd4 {[%emt 0:00:08]} 7. Bf1 {[%emt 0:00:15]} Nec6 {[%emt 0:00:
03]} 8. Nxd4 {[%emt 0:00:10]} cxd4 {[%emt 0:00:01]} 9. Ne2 {[%emt 0:00:15]} Bc5
{[%emt 0:00:40]} 10. d3 {[%emt 0:00:03]} h5 {[%emt 0:00:00]} 11. f4 {[%emt 0:
00:52]} h4 {[%emt 0:00:15]} 12. h3 {[%emt 0:00:03]} Bb4 {[%emt 0:00:11]} 13.
Bd2 {[%emt 0:00:10]} Bxd2 {[%emt 0:00:03]} 14. Qxd2 {[%emt 0:00:01]} Qxb2 {
[%emt 0:00:00]} 15. Reb1 {[%emt 0:00:35]} Qa3 {[%emt 0:00:02]} 16. Rb3 {[%emt
0:00:04]} Qe7 {[%emt 0:00:16]} 17. c3 {[%emt 0:00:06]} dxc3 {[%emt 0:00:05]}
18. Qxc3 {[%emt 0:00:03]} O-O {[%emt 0:00:02]} 19. Rb5 {[%emt 0:00:52]} d5 {
[%emt 0:02:15]} 20. exd5 {[%emt 0:00:14]} exd5 {[%emt 0:00:02]} 21. Rxd5 {
[%emt 0:00:10]} Be6 {[%emt 0:00:04]} 22. Rh5 {[%emt 0:00:23]} Rfd8 {[%emt 0:01:
05]} 23. f5 {[%emt 0:00:30]} Rd5 {[%emt 0:00:05]} 24. f6 {[%emt 0:01:40]} Qxf6
{[%emt 0:00:14]} 25. Qxf6 {[%emt 0:00:01]} gxf6 {[%emt 0:00:02]} 26. Nf4 {
[%emt 0:01:01]} Rxh5 {[%emt 0:00:23]} 27. Nxh5 {[%emt 0:00:01]} f5 {[%emt 0:00:
02]} 28. a4 {[%emt 0:00:48]} b6 {[%emt 0:00:16]} 29. Be2 {[%emt 0:00:19]} Nd4 {
[%emt 0:00:02]} 30. Kf2 {[%emt 0:00:03]} Rc8 {[%emt 0:00:02]} 31. Nf4 {[%emt 0:
00:22]} Rc5 {[%emt 0:00:07]} 32. g3 {[%emt 0:00:36]} hxg3+ {[%emt 0:00:03]} 33.
Kxg3 {[%emt 0:00:01]} Rc2 {[%emt 0:01:23]} 34. Bf3 {[%emt 0:00:02]} Ra2 {[%emt
0:00:50]} 35. Rxa2 {[%emt 0:00:08]} Bxa2 {[%emt 0:00:01]} 36. Bd5 {[%emt 0:00:
35]} Bb1 {[%emt 0:00:45]} 37. Bc4 {[%emt 0:01:16]} Bc2 {[%emt 0:00:08]} 38. Bb5
{[%emt 0:00:00]} Nxb5 {[%emt 0:00:22]} 39. axb5 {[%emt 0:00:01]} Ba4 {[%emt 0:
00:01]} 40. Nd5 {[%emt 0:00:02]} Bxb5 {[%emt 0:00:02]} 41. Ne7+ {[%emt 0:00:07]
} Kf8 {[%emt 0:00:04]} 42. Nc8 {[%emt 0:00:01]} Bd7 {[%emt 0:00:05]} 43. Nxa7 {
[%emt 0:00:09]} b5 {[%emt 0:00:01]} 44. Kf4 {[%emt 0:00:11]} b4 {[%emt 0:00:03]
} 45. Ke3 {[%emt 0:00:10]} f4+ {[%emt 0:00:01]} 46. Kd4 {[%emt 0:00:14]} 0-1

[Event "Dvaro taure"]
[Site "Taujenai, Lithuania"]
[Date "2021.11.28"]
[Round "7.2"]
[White "Viskelis, Darius"]
[Black "Salna, Aleksandras"]
[Result "0-1"]
[WhiteElo "1981"]
[BlackElo "2088"]
[PlyCount "86"]
[EventDate "2021.??.??"]
[TimeControl "10+5"]
[WhiteClock "0:00:15"]
[BlackClock "0:02:19"]

1. e4 {[%emt 0:00:03]} c5 {[%emt 0:00:02]} 2. d4 {[%emt 0:00:05]} cxd4 {[%emt
0:00:02]} 3. c3 {[%emt 0:00:02]} Nf6 {[%emt 0:00:00]} 4. e5 {[%emt 0:00:06]}
Nd5 {[%emt 0:00:00]} 5. Bc4 {[%emt 0:00:10]} Qc7 {[%emt 0:00:05]} 6. Qe2 {
[%emt 0:01:21]} Nb6 {[%emt 0:00:23]} 7. Bb3 {[%emt 0:00:03]} Nc6 {[%emt 0:00:
23]} 8. Nf3 {[%emt 0:00:08]} d5 {[%emt 0:00:53]} 9. exd6 {[%emt 0:00:55]} Qxd6
{[%emt 0:00:03]} 10. cxd4 {[%emt 0:01:27]} e6 {[%emt 0:03:37]} 11. Be3 {[%emt
0:00:26]} Bd7 {[%emt 0:00:12]} 12. Nc3 {[%emt 0:00:04]} Na5 {[%emt 0:00:21]}
13. O-O {[%emt 0:00:23]} Nxb3 {[%emt 0:00:03]} 14. axb3 {[%emt 0:00:01]} Be7 {
[%emt 0:00:50]} 15. Nb5 {[%emt 0:00:30]} Bxb5 {[%emt 0:00:19]} 16. Qxb5+ {
[%emt 0:00:01]} Qd7 {[%emt 0:00:07]} 17. Qh5 {[%emt 0:02:05]} Qd5 {[%emt 0:00:
28]} 18. Qxd5 {[%emt 0:01:04]} Nxd5 {[%emt 0:00:01]} 19. Rfc1 {[%emt 0:00:18]}
f6 {[%emt 0:00:12]} 20. Kf1 {[%emt 0:00:10]} Kd7 {[%emt 0:00:02]} 21. Rc4 {
[%emt 0:00:20]} Nb6 {[%emt 0:00:24]} 22. Rc2 {[%emt 0:00:10]} a6 {[%emt 0:00:
13]} 23. Rac1 {[%emt 0:00:15]} Nd5 {[%emt 0:00:08]} 24. Ke2 {[%emt 0:00:21]}
Rac8 {[%emt 0:00:05]} 25. Rxc8 {[%emt 0:00:13]} Rxc8 {[%emt 0:00:01]} 26. Rc4 {
[%emt 0:00:10]} Bd6 {[%emt 0:00:09]} 27. g3 {[%emt 0:00:10]} Nb6 {[%emt 0:00:
22]} 28. Rxc8 {[%emt 0:00:24]} Nxc8 {[%emt 0:00:02]} 29. Ne1 {[%emt 0:00:03]}
Kc6 {[%emt 0:00:06]} 30. Nd3 {[%emt 0:00:12]} g5 {[%emt 0:00:15]} 31. h4 {
[%emt 0:00:21]} gxh4 {[%emt 0:00:03]} 32. gxh4 {[%emt 0:00:01]} Ne7 {[%emt 0:
00:35]} 33. h5 {[%emt 0:00:24]} Kd5 {[%emt 0:00:06]} 34. Bf4 {[%emt 0:00:15]}
Nf5 {[%emt 0:00:16]} 35. Bxd6 {[%emt 0:00:02]} Kxd6 {[%emt 0:00:02]} 36. d5 {
[%emt 0:00:10]} Kxd5 {[%emt 0:00:13]} 37. Nf4+ {[%emt 0:00:01]} Ke5 {[%emt 0:
00:05]} 38. Nd3+ {[%emt 0:00:03]} Kd6 {[%emt 0:00:02]} 39. Kf3 {[%emt 0:00:09]}
Nd4+ {[%emt 0:00:07]} 40. Ke4 {[%emt 0:00:02]} Nxb3 {[%emt 0:00:03]} 41. h6 {
[%emt 0:00:06]} Nc5+ {[%emt 0:00:01]} 42. Nxc5 {[%emt 0:00:02]} Kxc5 {[%emt 0:
00:01]} 43. f4 {[%emt 0:00:04]} Kd6 {[%emt 0:00:03]} 0-1

[Event "Dvaro taure"]
[Site "Taujenai, Lithuania"]
[Date "2021.11.28"]
[Round "7.3"]
[White "Kalvaitis, Sigitas"]
[Black "Juknis, Paulius"]
[Result "1/2-1/2"]
[WhiteElo "2171"]
[BlackElo "2059"]
[PlyCount "129"]
[EventDate "2021.??.??"]
[TimeControl "10+5"]
[WhiteClock "0:00:31"]
[BlackClock "0:00:55"]

1. e4 {[%emt 0:23:51]} g6 {[%emt 0:00:03]} 2. d4 {[%emt 0:00:04]} Bg7 {[%emt 0:
00:01]} 3. Nf3 {[%emt 0:00:20]} d6 {[%emt 0:00:07]} 4. Be2 {[%emt 0:00:11]} Nf6
{[%emt 0:00:39]} 5. Nc3 {[%emt 0:00:02]} a6 {[%emt 0:00:01]} 6. a4 {[%emt 0:00:
04]} O-O {[%emt 0:00:03]} 7. O-O {[%emt 0:00:02]} b6 {[%emt 0:00:07]} 8. e5 {
[%emt 0:00:33]} Nfd7 {[%emt 0:00:38]} 9. Bf4 {[%emt 0:00:30]} dxe5 {[%emt 0:01:
09]} 10. dxe5 {[%emt 0:00:16]} e6 {[%emt 0:00:45]} 11. Qd2 {[%emt 0:00:42]} Bb7
{[%emt 0:02:35]} 12. Rad1 {[%emt 0:00:03]} Qc8 {[%emt 0:00:01]} 13. Rfe1 {
[%emt 0:00:26]} Nc5 {[%emt 0:00:57]} 14. Bh6 {[%emt 0:00:29]} Nc6 {[%emt 0:00:
39]} 15. Bxg7 {[%emt 0:00:59]} Kxg7 {[%emt 0:00:01]} 16. Qg5 {[%emt 0:00:02]}
Qe8 {[%emt 0:00:13]} 17. Bc4 {[%emt 0:00:55]} Qe7 {[%emt 0:01:05]} 18. Qxe7 {
[%emt 0:01:05]} Nxe7 {[%emt 0:00:00]} 19. b4 {[%emt 0:00:01]} Bxf3 20. gxf3 {
[%emt 0:00:00]} Nxa4 {[%emt 0:00:04]} 21. Nxa4 {[%emt 0:00:09]} b5 {[%emt 0:00:
01]} 22. Rd7 {[%emt 0:00:06]} Rfe8 {[%emt 0:00:11]} 23. Bxe6 {[%emt 0:01:18]}
bxa4 {[%emt 0:00:34]} 24. Ba2 {[%emt 0:00:11]} Rac8 {[%emt 0:00:08]} 25. Re4 {
[%emt 0:00:25]} c5 {[%emt 0:00:14]} 26. Rf4 {[%emt 0:00:22]} Nf5 {[%emt 0:00:
07]} 27. Rxf7+ {[%emt 0:00:02]} Kh6 {[%emt 0:00:02]} 28. Rf6 {[%emt 0:00:35]}
Kg5 {[%emt 0:00:23]} 29. Rg4+ {[%emt 0:01:18]} Kh6 {[%emt 0:00:16]} 30. Be6 {
[%emt 0:00:26]} Rc6 {[%emt 0:00:01]} 31. Bxf5 {[%emt 0:00:11]} Rxf6 {[%emt 0:
00:01]} 32. exf6 {[%emt 0:00:02]} gxf5 {[%emt 0:00:02]} 33. Rf4 {[%emt 0:00:20]
} Kg5 {[%emt 0:00:13]} 34. f7 {[%emt 0:00:13]} Rf8 {[%emt 0:00:02]} 35. Rc4 {
[%emt 0:00:01]} cxb4 {[%emt 0:00:11]} 36. Rxb4 {[%emt 0:00:01]} Rxf7 {[%emt 0:
00:05]} 37. Rxa4 {[%emt 0:00:01]} Rc7 {[%emt 0:00:01]} 38. f4+ {[%emt 0:00:10]}
Kg4 {[%emt 0:00:14]} 39. Kg2 {[%emt 0:00:03]} Rxc2 {[%emt 0:00:06]} 40. h3+ {
[%emt 0:00:01]} Kh5 {[%emt 0:00:02]} 41. Rxa6 {[%emt 0:00:03]} Rc4 {[%emt 0:00:
08]} 42. Kg3 {[%emt 0:00:02]} Rc3+ {[%emt 0:00:05]} 43. f3 {[%emt 0:00:05]} Rc1
{[%emt 0:00:37]} 44. Rf6 {[%emt 0:00:03]} Rc5 {[%emt 0:00:01]} 45. Re6 {[%emt
0:00:01]} Rc1 {[%emt 0:00:04]} 46. Rf6 {[%emt 0:00:14]} Rc5 {[%emt 0:00:01]}
47. Kf2 {[%emt 0:00:05]} Rb5 {[%emt 0:00:08]} 48. Re6 {[%emt 0:00:17]} Rb2+ {
[%emt 0:00:09]} 49. Kg3 {[%emt 0:00:01]} Rb1 {[%emt 0:00:02]} 50. Re5 {[%emt 0:
00:07]} Kg6 {[%emt 0:00:01]} 51. Kh4 {[%emt 0:00:02]} Rf1 {[%emt 0:00:06]} 52.
Re6+ {[%emt 0:00:14]} Kf7 {[%emt 0:00:03]} 53. Ra6 {[%emt 0:00:05]} Rg1 {[%emt
0:00:09]} 54. Ra7+ {[%emt 0:00:07]} Kg6 {[%emt 0:00:01]} 55. Ra8 {[%emt 0:00:
05]} Kf7 {[%emt 0:00:02]} 56. Ra6 {[%emt 0:00:06]} Kg7 {[%emt 0:00:01]} 57. Rb6
{[%emt 0:00:02]} h6 {[%emt 0:00:08]} 58. Rb5 {[%emt 0:00:14]} Kg6 {[%emt 0:00:
01]} 59. Rb6+ {[%emt 0:00:01]} Kg7 {[%emt 0:00:01]} 60. Kh5 {[%emt 0:00:05]}
Rg3 {[%emt 0:00:06]} 61. Rb7+ {[%emt 0:00:03]} Kf6 {[%emt 0:00:02]} 62. h4 {
[%emt 0:00:09]} Rxf3 {[%emt 0:00:08]} 63. Rb6+ {[%emt 0:00:01]} Kg7 {[%emt 0:
00:02]} 64. Rb7+ {[%emt 0:00:14]} Kf6 {[%emt 0:00:01]} 65. Rb6+ {[%emt 0:00:03]
Ke5 [%emt 00:00:03]} 1/2-1/2

[Event "Dvaro taure"]
[Site "Taujenai, Lithuania"]
[Date "2021.11.28"]
[Round "7.4"]
[White "Bazilius, Augustinas"]
[Black "Stremavicius, Pijus"]
[Result "1-0"]
[WhiteElo "1911"]
[BlackElo "2175"]
[PlyCount "107"]
[EventDate "2021.??.??"]
[TimeControl "10+5"]
[WhiteClock "0:00:29"]
[BlackClock "0:02:30"]

1. d4 {[%emt 0:00:04]} d5 {[%emt 0:00:02]} 2. c4 {[%emt 0:00:00]} e6 {[%emt 0:
00:00]} 3. Nf3 {[%emt 0:00:01]} Be7 {[%emt 0:00:02]} 4. g3 {[%emt 0:00:01]} Nf6
{[%emt 0:00:07]} 5. Bg2 {[%emt 0:00:00]} O-O {[%emt 0:00:05]} 6. O-O {[%emt 0:
00:01]} c6 {[%emt 0:00:11]} 7. Nbd2 {[%emt 0:00:02]} b6 {[%emt 0:00:09]} 8. Qc2
{[%emt 0:00:05]} Ba6 {[%emt 0:00:05]} 9. b3 {[%emt 0:00:00]} Nbd7 {[%emt 0:00:
02]} 10. Bb2 {[%emt 0:00:29]} Rc8 {[%emt 0:00:04]} 11. Rac1 {[%emt 0:00:51]} c5
{[%emt 0:00:00]} 12. e3 {[%emt 0:00:26]} cxd4 {[%emt 0:00:17]} 13. Nxd4 {[%emt
0:00:19]} Bc5 {[%emt 0:01:51]} 14. Rfd1 {[%emt 0:01:06]} e5 {[%emt 0:00:29]}
15. N4f3 {[%emt 0:00:09]} Qe7 {[%emt 0:00:13]} 16. Qf5 {[%emt 0:00:57]} e4 {
[%emt 0:01:50]} 17. Ne5 {[%emt 0:00:35]} Nxe5 {[%emt 0:00:26]} 18. Bxe5 {[%emt
0:01:41]} Qe6 {[%emt 0:00:06]} 19. Bh3 {[%emt 0:00:39]} Rce8 {[%emt 0:02:08]}
20. Bxf6 {[%emt 0:00:05]} Qxf6 {[%emt 0:00:34]} 21. Qxf6 {[%emt 0:00:43]} gxf6
{[%emt 0:00:01]} 22. cxd5 {[%emt 0:00:02]} Be2 {[%emt 0:00:15]} 23. Re1 {[%emt
0:00:00]} Bd3 {[%emt 0:00:00]} 24. Bf1 {[%emt 0:00:19]} Bb4 {[%emt 0:00:09]}
25. Red1 {[%emt 0:00:04]} Re5 {[%emt 0:00:33]} 26. Bxd3 {[%emt 0:00:42]} exd3 {
[%emt 0:00:01]} 27. Rc4 {[%emt 0:01:52]} a5 {[%emt 0:00:09]} 28. Rd4 {[%emt 0:
00:11]} Rd8 {[%emt 0:00:00]} 29. Nf3 {[%emt 0:00:07]} Rexd5 {[%emt 0:00:14]}
30. R1xd3 {[%emt 0:00:02]} Rxd4 {[%emt 0:00:01]} 31. Rxd4 {[%emt 0:00:03]} Rc8
{[%emt 0:00:00]} 32. Rc4 {[%emt 0:00:01]} Rd8 {[%emt 0:00:02]} 33. Rd4 {[%emt
0:00:01]} Rc8 {[%emt 0:00:07]} 34. Rc4 {[%emt 0:00:01]} Rb8 35. Nd4 {[%emt 0:
00:10]} Kg7 {[%emt 0:00:29]} 36. Nc6 {[%emt 0:00:22]} Rc8 {[%emt 0:00:20]} 37.
Nxb4 {[%emt 0:00:02]} Rxc4 {[%emt 0:00:01]} 38. bxc4 {[%emt 0:00:01]} axb4 {
[%emt 0:00:00]} 39. Kf1 {[%emt 0:00:01]} f5 {[%emt 0:00:01]} 40. Ke2 {[%emt 0:
00:03]} Kf6 {[%emt 0:00:00]} 41. Kd3 {[%emt 0:00:05]} Ke5 {[%emt 0:00:01]} 42.
f3 {[%emt 0:00:10]} h6 {[%emt 0:00:08]} 43. Kc2 {[%emt 0:00:26]} Kd6 {[%emt 0:
00:05]} 44. Kb3 {[%emt 0:00:02]} Kc5 {[%emt 0:00:01]} 45. h3 {[%emt 0:00:16]}
h5 {[%emt 0:00:05]} 46. g4 {[%emt 0:00:12]} fxg4 {[%emt 0:00:01]} 47. fxg4 {
[%emt 0:00:01]} hxg4 {[%emt 0:00:00]} 48. hxg4 {[%emt 0:00:04]} f6 {[%emt 0:00:
02]} 49. e4 {[%emt 0:00:02]} b5 {[%emt 0:00:32]} 50. cxb5 {[%emt 0:00:01]} Kxb5
{[%emt 0:00:01]} 51. e5 {[%emt 0:00:17]} fxe5 {[%emt 0:00:01]} 52. g5 {[%emt 0:
00:01]} e4 {[%emt 0:00:00]} 53. g6 {[%emt 0:00:03]} e3 54. Kc2 {[%emt 0:00:01]}
1-0

[Event "Dvaro taure"]
[Site "Taujenai, Lithuania"]
[Date "2021.11.28"]
[Round "7.5"]
[White "Povilaitis, Matas"]
[Black "Bagvilas, Lukas"]
[Result "1-0"]
[WhiteElo "1910"]
[BlackElo "2022"]
[PlyCount "133"]
[EventDate "2021.??.??"]
[TimeControl "10+5"]
[WhiteClock "0:00:46"]
[BlackClock "0:00:23"]

1. d4 {[%emt 0:00:02]} d5 {[%emt 0:00:00]} 2. Bf4 {[%emt 0:00:01]} Nf6 {[%emt
0:00:02]} 3. Nf3 {[%emt 0:00:00]} c5 {[%emt 0:00:02]} 4. e3 {[%emt 0:00:02]}
Nc6 {[%emt 0:00:07]} 5. Bd3 {[%emt 0:00:03]} c4 {[%emt 0:00:12]} 6. Be2 {[%emt
0:00:03]} Bf5 {[%emt 0:00:03]} 7. c3 {[%emt 0:00:09]} Qb6 {[%emt 0:00:02]} 8.
Qc1 {[%emt 0:00:02]} h6 {[%emt 0:00:10]} 9. h3 {[%emt 0:00:03]} e6 {[%emt 0:00:
03]} 10. Nbd2 {[%emt 0:00:02]} Be7 {[%emt 0:00:13]} 11. a3 {[%emt 0:00:17]} O-O
{[%emt 0:00:05]} 12. g4 {[%emt 0:00:02]} Bg6 {[%emt 0:00:26]} 13. g5 {[%emt 0:
01:04]} hxg5 {[%emt 0:00:14]} 14. Bxg5 {[%emt 0:00:14]} Ne4 {[%emt 0:00:14]}
15. Bxe7 {[%emt 0:00:14]} Nxe7 {[%emt 0:00:05]} 16. Ne5 {[%emt 0:00:01]} Bh7 {
[%emt 0:00:55]} 17. Nd7 {[%emt 0:00:26]} Qd6 {[%emt 0:00:28]} 18. Nxf8 {[%emt
0:00:05]} Rxf8 {[%emt 0:00:02]} 19. Qd1 {[%emt 0:01:19]} b5 {[%emt 0:00:34]}
20. Nxe4 {[%emt 0:00:03]} Bxe4 {[%emt 0:00:02]} 21. Bf3 {[%emt 0:00:00]} Bh7 {
[%emt 0:00:08]} 22. Qd2 {[%emt 0:00:43]} a5 {[%emt 0:00:07]} 23. Bd1 {[%emt 0:
01:11]} Nc6 {[%emt 0:00:20]} 24. Bc2 {[%emt 0:00:16]} f5 {[%emt 0:00:05]} 25.
f4 {[%emt 0:00:04]} Qe7 {[%emt 0:00:19]} 26. h4 {[%emt 0:00:07]} Nd8 {[%emt 0:
00:52]} 27. Qg2 {[%emt 0:01:13]} Nf7 {[%emt 0:00:05]} 28. Kd2 {[%emt 0:00:21]}
Rb8 {[%emt 0:01:00]} 29. Rhg1 {[%emt 0:00:17]} Nd6 {[%emt 0:00:06]} 30. Qg5 {
[%emt 0:00:46]} Qd7 {[%emt 0:00:28]} 31. Qf6 {[%emt 0:00:23]} Rf8 {[%emt 0:00:
50]} 32. Qg5 {[%emt 0:00:34]} Ne8 {[%emt 0:00:12]} 33. Rg2 {[%emt 0:00:28]} Nf6
{[%emt 0:00:10]} 34. Rag1 {[%emt 0:00:02]} Rf7 {[%emt 0:00:03]} 35. Qh6 {[%emt
0:00:56]} Qe7 {[%emt 0:00:58]} 36. h5 {[%emt 0:00:05]} Qd7 {[%emt 0:01:13]} 37.
Qg5 {[%emt 0:00:03]} Ng4 {[%emt 0:00:11]} 38. h6 {[%emt 0:00:31]} g6 {[%emt 0:
01:40]} 39. Qh4 {[%emt 0:00:23]} Qe7 {[%emt 0:00:39]} 40. Qh3 {[%emt 0:00:08]}
Nf6 {[%emt 0:00:03]} 41. Rg5 {[%emt 0:00:10]} Kf8 {[%emt 0:00:04]} 42. Qg2 {
[%emt 0:00:03]} Qd7 {[%emt 0:00:17]} 43. Qf2 {[%emt 0:00:09]} Qe7 {[%emt 0:00:
03]} 44. Qe1 {[%emt 0:00:02]} Qd6 {[%emt 0:00:02]} 45. R5g2 {[%emt 0:00:09]}
Ke7 {[%emt 0:00:04]} 46. Qh4 {[%emt 0:00:00]} Qd8 {[%emt 0:00:10]} 47. Bd1 {
[%emt 0:00:04]} Kf8 {[%emt 0:00:04]} 48. Qh2 {[%emt 0:00:08]} Qe7 {[%emt 0:00:
05]} 49. Bf3 {[%emt 0:00:02]} Qd6 {[%emt 0:00:03]} 50. Ra1 {[%emt 0:00:04]} Rb7
{[%emt 0:00:02]} 51. Qg1 {[%emt 0:00:03]} Kf7 {[%emt 0:00:02]} 52. Qd1 {[%emt
0:00:04]} b4 {[%emt 0:00:05]} 53. axb4 axb4 54. Ke1 {[%emt 0:00:09]} Qe7 {
[%emt 0:00:13]} 55. Qa4 {[%emt 0:00:02]} Nd7 {[%emt 0:00:02]} 56. Qc6 {[%emt 0:
00:09]} Nb8 {[%emt 0:00:03]} 57. Qa4 {[%emt 0:00:05]} bxc3 {[%emt 0:00:03]} 58.
bxc3 {[%emt 0:00:00]} Qh4+ {[%emt 0:00:01]} 59. Kf1 {[%emt 0:00:09]} Qh1+ {
[%emt 0:00:05]} 60. Kf2 {[%emt 0:00:02]} Rb2+ {[%emt 0:00:02]} 61. Kg3 {[%emt
0:00:01]} Rxg2+ {[%emt 0:00:19]} 62. Bxg2 {[%emt 0:00:02]} Qxh6 {[%emt 0:00:05]
} 63. Qa7+ Kf6 {[%emt 0:00:03]} 64. Qxb8 {[%emt 0:00:01]} g5 {[%emt 0:00:04]}
65. Qe5+ {[%emt 0:00:02]} Kf7 {[%emt 0:00:08]} 66. Ra7+ {[%emt 0:00:01]} Kg8 {
[%emt 0:00:04]} 67. Qb8+ {[%emt 0:00:04]} 1-0

[Event "Dvaro taure"]
[Site "Taujenai, Lithuania"]
[Date "2021.11.28"]
[Round "7.6"]
[White "Bagdanskis, Dangis"]
[Black "Baliasnyj, Timur"]
[Result "0-1"]
[WhiteElo "1861"]
[BlackElo "2001"]
[PlyCount "66"]
[EventDate "2021.??.??"]
[TimeControl "10+5"]
[WhiteClock "0:03:38"]
[BlackClock "0:00:22"]

1. d4 {[%emt 0:00:05]} Nf6 {[%emt 0:00:02]} 2. Nf3 {[%emt 0:00:02]} g6 {[%emt
0:00:03]} 3. Bf4 {[%emt 0:00:06]} Bg7 {[%emt 0:00:02]} 4. e3 {[%emt 0:00:01]}
O-O {[%emt 0:00:03]} 5. Bd3 {[%emt 0:00:02]} c5 {[%emt 0:00:03]} 6. c3 {[%emt
0:00:02]} d6 {[%emt 0:00:03]} 7. Qc2 {[%emt 0:00:03]} Nc6 {[%emt 0:00:33]} 8.
Nbd2 {[%emt 0:00:02]} Bg4 {[%emt 0:00:14]} 9. h3 {[%emt 0:00:04]} Bxf3 {[%emt
0:00:17]} 10. Nxf3 {[%emt 0:00:24]} cxd4 {[%emt 0:00:05]} 11. exd4 {[%emt 0:00:
04]} Rc8 {[%emt 0:00:02]} 12. Qd2 {[%emt 0:00:58]} e5 {[%emt 0:00:40]} 13. dxe5
{[%emt 0:01:11]} dxe5 {[%emt 0:00:01]} 14. Bg5 {[%emt 0:00:02]} e4 {[%emt 0:03:
14]} 15. Bxf6 {[%emt 0:00:02]} Qxf6 {[%emt 0:00:22]} 16. Bxe4 {[%emt 0:00:02]}
Rfe8 {[%emt 0:00:05]} 17. Qd5 {[%emt 0:00:07]} Rcd8 {[%emt 0:02:03]} 18. Qc4 {
[%emt 0:00:07]} Qf4 {[%emt 0:00:14]} 19. O-O {[%emt 0:01:15]} Rxe4 {[%emt 0:00:
08]} 20. Qb5 {[%emt 0:00:00]} Qc7 {[%emt 0:00:49]} 21. Rfe1 {[%emt 0:00:16]}
Rde8 {[%emt 0:00:07]} 22. Red1 {[%emt 0:00:05]} h6 {[%emt 0:00:33]} 23. Rd2 {
[%emt 0:00:20]} Ne5 {[%emt 0:00:28]} 24. Nd4 {[%emt 0:00:02]} Nc4 {[%emt 0:00:
04]} 25. Rdd1 {[%emt 0:00:14]} a6 {[%emt 0:00:13]} 26. Qb3 {[%emt 0:00:09]}
Bxd4 {[%emt 0:01:01]} 27. cxd4 {[%emt 0:00:02]} Re2 {[%emt 0:00:05]} 28. Rac1 {
[%emt 0:00:00]} Qf4 {[%emt 0:00:09]} 29. Rf1 {[%emt 0:00:13]} Nd2 {[%emt 0:00:
12]} 30. Qxb7 {[%emt 0:01:11]} Nxf1 {[%emt 0:00:05]} 31. Rxf1 {[%emt 0:00:03]}
Rxf2 {[%emt 0:00:09]} 32. Rb1 {[%emt 0:00:54]} Ree2 {[%emt 0:00:10]} 33. Kh1 {
[%emt 0:00:58]} Rxg2 {[%emt 0:00:13]} 0-1

[Event "Dvaro taure"]
[Site "Taujenai, Lithuania"]
[Date "2021.11.28"]
[Round "7.7"]
[White "Valantiejus, Vaidotas"]
[Black "Sumskis, Rimvydas"]
[Result "0-1"]
[WhiteElo "1962"]
[BlackElo "1895"]
[PlyCount "72"]
[EventDate "2021.??.??"]
[TimeControl "10+5"]
[WhiteClock "0:00:07"]
[BlackClock "0:00:31"]

1. e4 {[%emt 0:00:02]} e6 {[%emt 0:00:00]} 2. d4 {[%emt 0:00:02]} d5 {[%emt 0:
00:01]} 3. Nc3 {[%emt 0:00:06]} Bb4 {[%emt 0:00:01]} 4. e5 {[%emt 0:00:02]} b6
{[%emt 0:00:02]} 5. a3 {[%emt 0:00:19]} Bf8 {[%emt 0:00:02]} 6. b4 {[%emt 0:05:
09]} c5 {[%emt 0:00:49]} 7. b5 {[%emt 0:00:53]} cxd4 {[%emt 0:00:25]} 8. Qxd4 {
[%emt 0:00:03]} Qc7 {[%emt 0:00:05]} 9. Nf3 {[%emt 0:00:33]} Nd7 {[%emt 0:00:
08]} 10. Bd2 {[%emt 0:00:30]} Ne7 {[%emt 0:00:15]} 11. Bd3 {[%emt 0:00:17]} Ng6
{[%emt 0:00:04]} 12. Bxg6 {[%emt 0:01:32]} hxg6 {[%emt 0:00:03]} 13. O-O {
[%emt 0:00:08]} Bb7 {[%emt 0:00:23]} 14. Rfe1 {[%emt 0:00:23]} Rc8 {[%emt 0:00:
12]} 15. Qf4 {[%emt 0:00:16]} Qc4 {[%emt 0:00:41]} 16. Nd4 {[%emt 0:00:16]} Be7
{[%emt 0:02:34]} 17. Nce2 {[%emt 0:00:40]} Rh4 {[%emt 0:00:36]} 18. Qe3 {[%emt
0:00:09]} Re4 {[%emt 0:00:18]} 19. Qh3 {[%emt 0:00:03]} Rxe5 {[%emt 0:00:47]}
20. Qh8+ {[%emt 0:00:09]} Bf8 {[%emt 0:00:02]} 21. Bb4 {[%emt 0:00:07]} Rh5 {
[%emt 0:00:06]} 22. Qg8 {[%emt 0:00:04]} Qc7 {[%emt 0:01:53]} 23. g3 {[%emt 0:
00:04]} Nc5 {[%emt 0:00:20]} 24. Nf4 {[%emt 0:00:03]} Re5 {[%emt 0:00:17]} 25.
Rxe5 {[%emt 0:00:04]} Qxe5 {[%emt 0:00:03]} 26. Re1 {[%emt 0:00:01]} Qxd4 {
[%emt 0:00:15]} 27. Nxe6 {[%emt 0:00:02]} fxe6 {[%emt 0:00:28]} 28. Bxc5 {
[%emt 0:00:10]} Qxc5 {[%emt 0:00:34]} 29. Rxe6+ {[%emt 0:00:04]} Kd8 {[%emt 0:
00:13]} 30. Qf7 {[%emt 0:00:07]} Be7 {[%emt 0:00:11]} 31. Qxg6 {[%emt 0:00:16]}
Qxc2 {[%emt 0:00:26]} 32. Qxg7 {[%emt 0:00:03]} Qc1+ {[%emt 0:00:06]} 33. Kg2 {
[%emt 0:00:01]} Qc5 {[%emt 0:00:01]} 34. Kg1 {[%emt 0:00:12]} d4 {[%emt 0:00:
05]} 35. Qg8+ {[%emt 0:00:06]} Kd7 {[%emt 0:00:02]} 36. Rxe7+ {[%emt 0:00:04]}
Qxe7 {[%emt 0:00:02]} 0-1

[Event "Dvaro taure"]
[Site "Taujenai, Lithuania"]
[Date "2021.11.28"]
[Round "7.9"]
[White "Aleknavicius, Andrius"]
[Black "Griksaite, Egle"]
[Result "1-0"]
[WhiteElo "1942"]
[BlackElo "1508"]
[PlyCount "67"]
[EventDate "2021.??.??"]
[TimeControl "10+5"]
[WhiteClock "0:00:28"]
[BlackClock "0:00:09"]

1. d4 {[%emt 0:00:03]} Nf6 {[%emt 0:00:04]} 2. Bf4 {[%emt 0:00:00]} g6 {[%emt
0:00:08]} 3. Nc3 {[%emt 0:00:00]} d6 {[%emt 0:00:03]} 4. e4 {[%emt 0:00:02]}
Bg7 {[%emt 0:00:02]} 5. Qd2 {[%emt 0:00:02]} Nbd7 {[%emt 0:00:37]} 6. O-O-O {
[%emt 0:00:09]} Nh5 {[%emt 0:00:25]} 7. Bg5 {[%emt 0:00:32]} h6 {[%emt 0:00:17]
} 8. Bh4 {[%emt 0:00:04]} g5 {[%emt 0:00:29]} 9. Bg3 {[%emt 0:01:48]} Nxg3 {
[%emt 0:00:03]} 10. hxg3 {[%emt 0:00:02]} e5 {[%emt 0:00:35]} 11. dxe5 {[%emt
0:00:16]} Nxe5 {[%emt 0:00:40]} 12. f4 {[%emt 0:00:16]} Nc6 {[%emt 0:00:19]}
13. Bc4 {[%emt 0:00:44]} Qe7 {[%emt 0:01:09]} 14. Nd5 {[%emt 0:00:17]} Qd8 {
[%emt 0:00:33]} 15. Nf3 {[%emt 0:00:36]} gxf4 {[%emt 0:03:09]} 16. gxf4 {[%emt
0:00:21]} Be6 {[%emt 0:00:16]} 17. Rhe1 {[%emt 0:01:59]} O-O {[%emt 0:01:12]}
18. Rh1 {[%emt 0:01:23]} Bxd5 {[%emt 0:00:10]} 19. Bxd5 {[%emt 0:00:28]} Qf6 {
[%emt 0:00:19]} 20. c3 {[%emt 0:00:13]} Ne7 {[%emt 0:00:27]} 21. Bb3 {[%emt 0:
00:24]} Ng6 {[%emt 0:00:11]} 22. g3 {[%emt 0:00:15]} Rfe8 {[%emt 0:00:08]} 23.
Rde1 {[%emt 0:00:12]} Rad8 {[%emt 0:00:05]} 24. Nd4 {[%emt 0:00:05]} Rd7 {
[%emt 0:00:17]} 25. Nf5 {[%emt 0:00:05]} Ne7 {[%emt 0:00:09]} 26. Nxg7 {[%emt
0:00:17]} Qxg7 {[%emt 0:00:02]} 27. Qh2 {[%emt 0:00:17]} Kh7 {[%emt 0:00:04]}
28. Bxf7 {[%emt 0:00:16]} Ng6 {[%emt 0:00:21]} 29. Bxe8 {[%emt 0:00:06]} Re7 {
[%emt 0:00:01]} 30. Bxg6+ {[%emt 0:00:45]} Qxg6 {[%emt 0:00:02]} 31. Qh5 {
[%emt 0:00:03]} Qg7 {[%emt 0:00:03]} 32. Qf5+ {[%emt 0:00:11]} Kg8 {[%emt 0:00:
03]} 33. Rh4 {[%emt 0:00:20]} Qxg3 {[%emt 0:00:14]} 34. Rg4+ {[%emt 0:00:02]}
1-0